Cogmind - Beta 11.1 @@@ ROGUE MODE // 2022.11.14 @ 20:21:57 Player: ILikeMonsters1890 Result: Destroyed by G-47 Trooper with Particle Gun Performance ------------- Evolutions (0) 0 Regions Visited (2) 400 Robots Destroyed (16) 80 Value Destroyed (256) 256 Prototype IDs (1) 20 Alien Tech Used (0) 0 Bonus (0) 0 TOTAL SCORE: 756 Bonus ------- None Cogmind --------- Core Integrity 0/250 Matter 274/300 Energy 280/280 System Corruption 0% Temperature Cool (9) Movement Rolling (95) Ox1 Location -10/Mines Parts ------- > --- POWER (1) -------- Heavy Ion Engine > --- PROPULSION (2) --- Wheel Wheel > --- UTILITY (2) ------ Medium Storage Unit Signal Interpreter > --- WEAPON (2) ------- Spread Laser Spread Laser > --- INVENTORY (10) --- Light Ion Engine Light Ion Engine Wheel Small Storage Unit Sensor Array EM Pulse Gun Small Laser Spread Laser Assault Rifle Rocket Launcher Peak State ------------ > --- POWER ------------ Heavy Ion Engine > --- PROPULSION ------- Wheel Wheel > --- UTILITY ---------- Medium Storage Unit Seismic Detector > --- WEAPON ----------- Spread Laser Spread Laser > --- INVENTORY -------- Ion Engine Light Ion Engine Wheel Wheel Small Storage Unit Signal Interpreter Small Laser Spread Laser Assault Rifle [Rating: 12] Favorites ----------- Power Heavy Ion Engine Engine Heavy Ion Engine Propulsion Wheel Leg Aluminum Leg Wheel Wheel Utility Medium Storage Unit Device Seismic Detector Storage Medium Storage Unit Processor Signal Interpreter Weapon Spread Laser Energy Gun Spread Laser Ballistic Gun Assault Rifle Build | -11 -10 -10 ------- Run | Scr Mat Min Slots Evolved . | . . . Power . | . . . Propulsion . | . . . Utility . | . . . Weapon . | . . . Parts Attached 14 | 6 6 2 Power 3 | . 3 . Engine 3 | . 3 . Core . | . . . Reactor . | . . . Propulsion 5 | 4 . 1 Treads . | . . . Leg . | . . . Wheel 5 | 4 . 1 Hover . | . . . Flight . | . . . Utility 3 | 1 1 1 Device 1 | 1 . . Storage 1 | . 1 . Processor 1 | . . 1 Hackware . | . . . Protection . | . . . Artifact . | . . . Weapon 3 | 1 2 . Energy Gun 3 | 1 2 . Energy Cannon . | . . . Ballistic Gun . | . . . Ballistic Cannon . | . . . Launcher . | . . . Special Weapon . | . . . Impact Weapon . | . . . Slashing Weapon . | . . . Piercing Weapon . | . . . Special Melee Weapon . | . . . Unidentified Prototypes 1 | . 1 . Parts Lost 1 | . 1 . Power . | . . . Propulsion . | . . . Utility 1 | . 1 . Weapon . | . . . Highest Loss Streak 1 | . 1 . To Critical Strikes . | . . . Average Slot Usage (%) 99 | . 98 100 Engine 14 | . 14 14 Wheel 28 | . 28 28 Device 8 | . 12 . Storage 14 | . 14 14 Processor 5 | . . 14 Energy Gun 25 | . 24 28 Ballistic Gun 2 | . 3 . Naked Turns . | . . . Heaviest Build 25 | 14 25 24 Greatest Support 26 | 26 20 20 Greatest Overweight (x) 2 | . 2 1 Average Overweight (x) . | . . 1 Largest Inventory Capacity 10 | 8 10 10 Average Capacity 9 | 8 9 10 Most Carried 10 | 6 10 10 Average Carried 8 | 3 8 9 Final Capacity 10 | 8 10 10 Final Carried 10 | 5 10 10 Class Distribution -------------------- 100% | Mutant Dominant Class ---------------- Mutant | -10/Materials Mutant | -10/Mines Resources | -11 -10 -10 ----------- Run | Scr Mat Min Matter Collected 413 | 293 96 24 Remotely . | . . . Salvage Created 422 | 181 241 . Parts 26 | 11 15 . Haulers Intercepted . | . . . Recyclers Shooed 1 | 1 . . Parts Field Recycled . | . . . Retrieved Matter . | . . . Parts Self-Destructed . | . . . Prevented . | . . . Kills | -11 -10 -10 ------- Run | Scr Mat Min Combat Hostiles Destroyed 7 | . 7 . Guns 7 | . 7 . Classes Destroyed 6 | 2 4 . Worker 1 | . 1 . Tunneler 5 | 5 . . Recycler 2 | 1 1 . Watcher 1 | . 1 . Swarmer 3 | . 3 . Grunt 4 | . 4 . Best Kill Streak 6 | 4 6 . Combat Bots Only 6 | . 6 . Max Kills in Single Turn 2 | 1 2 . Gunslinging . | . . . Exploded . | . . . Melee . | . . . Uniques/NPCs Destroyed . | . . . Combat | -11 -10 -10 -------- Run | Scr Mat Min Damage Taken 427 | . 350 77 Core 264 | . 237 27 Absorbed by Shields . | . . . Core Remaining (%) 100 | 100 . . Volleys Fired 32 | 11 21 . Largest 2 | 2 2 . Hottest 130 | 60 130 . Shots Fired 64 | 22 42 . Gun 64 | 22 42 . Cannon . | . . . Launcher . | . . . Special . | . . . Kinetic 13 | 11 2 . Thermal 51 | 11 40 . Explosive . | . . . Electromagnetic . | . . . Robot Hit Streak 9 | 5 9 . Robot Miss Streak 9 | 1 9 . Penetration Max . | . . . Secondary Targets 1 | . 1 . Max Gunslinging Chain 1 | . 1 . Shots Hit Robots 49 | 13 36 . Core Hits 49 | 7 42 . Critical Kills . | . . . Critical Parts Destroyed . | . . . Critical Strikes . | . . . Melee Attacks . | . . . Impact . | . . . Slashing . | . . . Piercing . | . . . Sneak Attacks . | . . . Combat Hostiles . | . . . Follow-up Attacks . | . . . Damage Inflicted 583 | 147 436 . Guns 583 | 147 436 . Cannons . | . . . Explosions . | . . . Melee . | . . . Ramming . | . . . Kinetic 70 | 70 . . Thermal 513 | 77 436 . Explosive . | . . . Electromagnetic . | . . . Impact . | . . . Slashing . | . . . Piercing . | . . . Highest Corruption . | . . . Average Corruption . | . . . Corruption Purged . | . . . Corruption Blocked . | . . . Overload Shots . | . . . Overflow Damage . | . . . Projectiles . | . . . Explosions . | . . . Melee . | . . . Knockbacks . | . . . Impact . | . . . Kinetic . | . . . Secondary . | . . . Self-Inflicted Damage . | . . . Shots . | . . . Rammed . | . . . Targets Rammed . | . . . Kicked . | . . . Crushed . | . . . Highest Temperature 705 | . 705 . Average Temperature 219 | . 219 . Received Heat Transfer 159 | . 117 42 Effects 14 | . 14 . Shutdowns 3 | . 3 . Energy Bleed 1 | . 1 . Matter Decay 2 | . 2 . Short Circuit 1 | . 1 . Damage (major) 4 | . 4 . Damage (core) 3 | . 3 . Siege Activations . | . . . Robots Corrupted . | . . . Combat Hostiles . | . . . Parts Fried . | . . . Impact Corruptions . | . . . Robots Melted . | . . . Combat Hostiles . | . . . Parts Melted . | . . . Heat Transferred 745 | 175 570 . Parts Sabotaged . | . . . Parts Stolen . | . . . Parts Stripped . | . . . Power Chain Reactions . | . . . Missiles Intercepted . | . . . Alert | -11 -10 -10 ------- Run | Scr Mat Min Peak Influence 241 | 30 241 123 Initial 93 | . 19 93 Average 74 | 13 87 97 Maximum Alert Level 1 | . 1 . Low Security (%) 95 | 100 90 100 Level 1 4 | . 9 . Level 2 . | . . . Level 3 . | . . . Level 4 . | . . . Level 5 . | . . . High Security . | . . . Max Security . | . . . Squads Dispatched . | . . . Investigation . | . . . Extermination . | . . . Reinforcement . | . . . Assault . | . . . Garrison . | . . . Intercept . | . . . Searches Triggered . | . . . Construction Impeded . | . . . Haulers Reinforced . | . . . Active Scanning Responses . | . . . Cargo Convoy Interrupts . | . . . Stealth | -11 -10 -10 --------- Run | Scr Mat Min Distress Signals 2 | . 2 . Communications Jammed . | . . . Distress Signals . | . . . Times Spotted 15 | . 11 4 Peak Tracking Total 5 | . 5 2 Tactical Retreats 1 | . . 1 Traps | -11 -10 -10 ------- Run | Scr Mat Min Traps Triggered . | . . . Indirectly . | . . . Trap Hack Attempts . | . . . Triggered . | . . . Disarmed . | . . . Reprogrammed . | . . . Reused . | . . . Traps Extracted . | . . . Installed . | . . . Triggered . | . . . Machines | -11 -10 -10 ---------- Run | Scr Mat Min Machines Disabled . | . . . Max in Single Turn . | . . . Machines Sabotaged . | . . . Garrisons Compromised . | . . . Overloaded Fab Kills . | . . . Hacking | -11 -10 -10 --------- Run | Scr Mat Min Machines Accessed 2 | . 2 . Terminals 1 | . 1 . Fabricators . | . . . Repair Stations . | . . . Recycling Units 1 | . 1 . Scanalyzers . | . . . Garrison Access . | . . . Total Hacks 8 | . 8 . Successful 6 | . 6 . Failed 2 | . 2 . Catastrophic . | . . . Database Lockouts . | . . . Manual 2 | . 2 . Terminals 4 | . 4 . Fabricators . | . . . Repair Stations . | . . . Recycling Units 4 | . 4 . Scanalyzers . | . . . Garrison Access . | . . . Terminal Hacks 2 | . 2 . Level Access Points 1 | . 1 . Registered Components 1 | . 1 . Fabricator Hacks . | . . . Repair Station Hacks . | . . . Recycling Unit Hacks 3 | . 3 . Process 1 | . 1 . Report Inventory 1 | . 1 . Retrieve Components 1 | . 1 . Scanalyzer . | . . . Garrison Access Hacks . | . . . Unauthorized Hacks 1 | . 1 . Terminals . | . . . Fabricators . | . . . Repair Stations . | . . . Recycling Units 1 | . 1 . Reject 1 | . 1 . Scanalyzers . | . . . Garrison Access . | . . . Data Cores Recovered . | . . . Used . | . . . Hacking Detections 2 | . 2 . Full Trace Events . | . . . Feedback Events . | . . . Feedback Blocked . | . . . Robot Schematics Acquired . | . . . Robots Built . | . . . Authchips . | . . . Time . | . . . Total Robot Build Rating . | . . . Part Schematics Acquired . | . . . Parts Built . | . . . Authchips . | . . . Time . | . . . Total Part Build Rating . | . . . Parts Repaired . | . . . Time . | . . . Parts Recycled . | . . . Recycled Matter . | . . . Retrieved Matter . | . . . Retrieved Components . | . . . Parts Scanalyzed . | . . . Part Schematics Acquired . | . . . Parts Damaged . | . . . Bothacking | -11 -10 -10 ------------ Run | Scr Mat Min Used RIF Installer . | . . . Robots Hacked . | . . . Non-combat . | . . . Combat . | . . . Robot Hacks Applied . | . . . Relay Couplers Released . | . . . Fabnet Peak Effective % . | . . . Robots Rewired . | . . . Allies Hacked . | . . . Hacks Repelled . | . . . Allies | -11 -10 -10 -------- Run | Scr Mat Min Total Allies . | . . . Largest Group . | . . . Highest-Rated Group . | . . . Highest-Rated Ally . | . . . Total Orders . | . . . Ally Attacks . | . . . Total Damage . | . . . Kills . | . . . Allies Corrupted . | . . . Allies Melted . | . . . Intel | -11 -10 -10 ------- Run | Scr Mat Min Robot Analysis Total . | . . . Derelict Logs Recovered 1 | . . 1 Drone Launches . | . . . Drone Recoveries . | . . . Exploration | -11 -10 -10 ------------- Run | Scr Mat Min Turns Passed 527 | 111 264 152 Spaces Moved 397 | 68 175 154 Core . | . . . Treads . | . . . Legs . | . . . Wheels 397 | 68 175 154 Hover . | . . . Flight . | . . . Fastest Speed 80 | 80 80 95 Average Speed 91 | 84 91 95 Slowest Speed 110 | 90 110 95 Overloaded Moves . | . . . Propulsion Burnouts . | . . . Robots Hopped . | . . . Cave-ins Triggered . | . . . Exploration Rate (%) 24 | 4 25 44 Regions Visited 2 Branch Regions 1 Pre-discovered Areas 1 | . . 1 Known Exits Taken . | . . . Unknown Exits Taken 2 | 1 1 . Scrap Searched 1 | . . 1 Spaces Dug . | . . . Terrain Destroyed . | . . . Melee . | . . . Projectile . | . . . AOE . | . . . Terrain Rammed . | . . . Walls Destroyed . | . . . Machines Disabled . | . . . Actions | -11 -10 -10 --------- Run | Scr Mat Min Total 494 | 100 235 159 Wait 25 | 2 23 . Move 395 | 67 174 154 Hop . | . . . Pick Up 17 | 7 8 2 Fast Attach . | . . . Attach 2 | 1 . 1 Detach . | . . . Swap 12 | 5 6 1 Drop 11 | 7 3 1 Fire 32 | 11 21 . Melee . | . . . Ram . | . . . Kick . | . . . Crush . | . . . Escape Stasis . | . . . Rewire . | . . . Trap . | . . . Miscellaneous . | . . . Route ------- -11/Scrapyard -10/Materials (discovered 4 exits: Mat x3 / [*Min]) -10/Mines History --------- Turn | Location | Event 8 | -11/Scrapyard | Discovered new exit (range 2) 112 | -11/Scrapyard | Entered Materials 137 | -10/Materials | Discovered new exit (range 16) 313 | -10/Materials | Build established: Mutant 318 | -10/Materials | Identified exit to Materials 364 | -10/Materials | Core integrity fell below 50% 365 | -10/Materials | Core integrity fell below 20% 376 | -10/Materials | Entered Mines 388 | -10/Mines | Received a Rocket Launcher from a helpful Derelict 509 | -10/Mines | Learned location of Mines (-8) 528 | -10/Mines | Destroyed by G-47 Trooper with Particle Gun Last Messages --------------- laser when you travel the depths." 00383_ Searching scrap... 00383_ Found Med. Laser. 00383_ Found Sensor Array. 00383_ Found 24 Matter. 00384_ Acquired 24 matter. 00384_ RY-VDL(g): "You know what I say? NO!" 00385_ RY-VDL(g): "Everyone knows a good old rocket launcher goes a long way." 00385_ Acquired Sensor Array. 00386_ RY-VDL(g): "Need to get rid of a swarm? Done. Need a big hole in the wall? Done." 00387_ RY-VDL(g): "Need a small hole in the wall? Leave that to the mining laser wimps, I say!" 00388_ RY-VDL(g): "Would you like a rocket launcher? I know I would if I were you, so I'm going to lend you mine." 00388_ RY-VDL(g) slips back into the shadows. 00391_ Acquired Rocket Launcher. 00509_ Acquired derelict log, extracted data. World map updated: -8/Mines. Map ----- +----------------------------------------------------+ | ????????????????????????????????????? | | ??????????????????????###???????????? | | ????????????????????## ##?????###??? | | ???????????????????## #???? ##?? | | #??????????????????# ##?? ##? | | ##?????????????????? ## #? | | #################### #? | | #?? | | #??? | | ######### ########### ## #??? | | ##??????# #????????# ##??????? #??? | | ##?????# #????????# #????????????? | | ####### #????????# #????????????? | | #????????# #????????????? | | ######## #?????#### #????????????? | | ###??????# #?????# #????????????? | | #????????# #?????# ####????????????? | | ?????????# ####### #???????????????? | | ?????????# ## #???????????????? | | ?????????# ## #???????????????? | | ?????????# ## ######????????######?? | | ?#######?# ## #???????????? g ??? | | ?# #?# ## #????????#### g ????? | | ?# #?# ## #????????# ??????? | | ?# #?# ## ##???????# ????????? | | ?#""" #?# ## ##??????#@#?????????? | | ?#""" #?# ### ######## #?????????? | | ?#""" ### #?# #?????????? | | ?# ## #########?????????? | | ?# ###### #?????????????????? | | ?#### ##????# ?????????????????? | | ????# #?????## #????????????????? | | ????# #??????## ????????????????? | | ????# #???????# """ #???????????????? | | ????# #???????# """ #???????????????? | | ????# ????????# """ #???????????????? | | ????# ???????? ???????????????? | | ????? ???????? ?? ???????????????? | | ?????#???????? ##?? ??????????????? | | ?????????????# ????? ??????????????? | | ?????????????# ??????? ?????????????? | | ?????????????# ?????????????????????? | | ????????????????????????????????????? | | ????????????????????????????????????? | | ????????????????????????????????????? | | ????????????????????????????????????? | | ????????????????????????????????????? | | ????????????????????????????????????? | | ????????????????????????????????????? | | ????????????????????????????????????? | +----------------------------------------------------+ Best States ------------- Heat Dissipation 25 Energy Generation 14 Energy Capacity 280 Matter Stores 300 Matter Capacity 300 Sight Range 16 Terrain Scan Density 10 Evasion (%) 44 Item Schematics ----------------- None Robot Schematics ------------------ None Fabricated ------------ Nothing Alien Tech Used ----------------- None Achievements -------------- None Challenges ------------ None Game ------ Seed MolecularImprovedMatrix Manual? 0 Play Time 00:07:35 Cumulative 93.3 hours Start 2022.11.14 @ 20:15:11 End 2022.11.14 @ 20:21:57 Sessions 1 Manual Loads 0 Difficulty Rogue Special Mode None Game No. 98 Rogue 98 Adventurer 0 Explorer 0 Win Type - Total 0 Types 0/0/0/0/0/0/0/0/0 Lore% 60 Gallery% 49 Achievement% 43 Wizard Run 0 Options --------- ASCII 0 Keyboard 0 Movement Numpad Keybinds 0 Fullscreen 2 Font 18/SmallcapsGlow Map View 76x50 Tactical HUD 1 Map Filters NONE Filters NONE Steam 1 RUN: 074bbba4-0b29-44d8-a6ae-6add375fde5c